bitfinex-derivatives/quotes_BTCF0:USTF0_20210705
["timestamp","ask_amount","ask_price","bid_price","bid_amount"]
[1625446718527,3.04444968,34848.0,34847.0,0.00525778]
[1625446720030,1.70883478,34848.0,34847.0,0.00525778]
[1625446721084,0.54015088,34848.0,34847.0,0.00525778]
[1625446721283,0.54015088,34848.0,34845.0,1.19028646]
[1625446721584,0.54015088,34848.0,34846.0,0.00524094]
[1625446721686,1.71015219,34848.0,34846.0,0.00524094]
[1625446722089,1.71015219,34848.0,34845.0,0.00524096]
[1625446722190,2.00187219,34848.0,34845.0,0.00524096]
[1625446722286,2.06087219,34848.0,34845.0,0.00524096]
[1625446722587,0.24057544,34846.0,34845.0,0.00524096]
[1625446722685,0.29957544,34846.0,34845.0,0.00524096]
[1625446722886,0.29957544,34846.0,34844.0,0.00524104]
[1625446723590,0.29957544,34846.0,34844.0,1.19002305]
[1625446723988,0.29957544,34846.0,34845.0,0.0052409]
[1625446725492,0.63401166,34846.0,34845.0,0.0052409]
[1625446726494,0.57501166,34846.0,34845.0,0.0052409]
[1625446726596,0.63401166,34846.0,34845.0,0.0052409]
[1625446727097,0.71776359,34846.0,34845.0,1.18929599]
[1625446727997,0.38332737,34846.0,34845.0,1.18929599]
[1625446728498,0.71771913,34846.0,34845.0,1.18929599]
[1625446730353,0.71771913,34846.0,34845.0,0.0052409]
[1625446730454,0.38332737,34846.0,34845.0,0.0052409]
[1625446731007,0.29957544,34846.0,34845.0,0.0052409]
[1625446731108,0.24057544,34846.0,34845.0,0.0052409]
[1625446731207,0.52918544,34846.0,34845.0,0.0052409]
[1625446731408,0.52918544,34846.0,34844.0,0.0052416]
[1625446731507,0.52918544,34846.0,34844.0,1.18894517]
[1625446731508,0.92260331,34846.0,34844.0,1.18894517]
[1625446731608,0.92260331,34846.0,34845.0,0.00524173]
[1625446732311,0.58818544,34846.0,34845.0,0.00524173]
[1625446732710,0.58818544,34846.0,34844.0,0.00524153]
[1625446732812,0.92255739,34846.0,34844.0,0.00524153]
[1625446733362,0.33447717,34845.0,34844.0,0.00524153]
[1625446733563,0.39347717,34845.0,34844.0,0.00524153]
[1625446734263,0.059,34845.0,34844.0,0.00524153]
[1625446734614,0.39377896,34845.0,34844.0,0.00524153]
[1625446735822,0.14284599,34845.0,34844.0,0.00524153]
[1625446736268,0.47889309,34845.0,34844.0,0.00524153]
[1625446736668,0.3950471,34845.0,34844.0,0.00524153]
[1625446737223,0.059,34845.0,34844.0,0.00524153]
[1625446737623,0.059,34845.0,34844.0,0.3433397]
[1625446738978,0.059,34845.0,34844.0,0.00524153]
[1625446745641,0.118,34845.0,34844.0,0.00524153]
[1625446746143,0.059,34845.0,34844.0,0.00524153]
[1625446746346,1.06673178,34845.0,34844.0,0.00524153]
[1625446746743,1.12573178,34845.0,34844.0,0.00524153]
[1625446747596,2.30140924,34845.0,34844.0,0.34357738]
[1625446747898,2.30140924,34845.0,34844.0,0.00524153]
[1625446749858,2.30140924,34845.0,34844.0,0.25562153]
[1625446749965,2.18340924,34845.0,34844.0,0.25562153]
[1625446750072,2.18340924,34845.0,34844.0,1.27122981]
[1625446750073,1.00773178,34845.0,34844.0,1.27122981]
[1625446750254,1.00773178,34845.0,34844.0,1.27973058]
[1625446750453,1.34496086,34845.0,34844.0,1.27973058]
[1625446750549,0.33722908,34845.0,34844.0,3.81858791]
[1625446750698,0.33722908,34845.0,34844.0,4.05916335]
[1625446750999,0.08448933,34845.0,34844.0,4.05916335]
[1625446751199,0.08448933,34845.0,34844.0,4.11816335]
[1625446751400,0.66252452,34846.0,34844.0,4.11816335]
[1625446751702,0.66252452,34846.0,34845.0,0.01375647]
[1625446751801,0.66252452,34846.0,34845.0,0.07275647]
[1625446751953,0.57802684,34846.0,34845.0,3.6271264]
[1625446752202,0.57802684,34846.0,34845.0,3.5681264]
[1625446752405,0.24057544,34846.0,34845.0,2.21408071]
[1625446752705,0.29957544,34846.0,34845.0,2.21408071]
[1625446752807,0.29957544,34846.0,34845.0,2.20558058]
[1625446752907,0.35857544,34846.0,34845.0,2.20558058]
[1625446753307,0.35857544,34846.0,34845.0,0.00525634]
[1625446753308,2.54857045,34846.0,34845.0,0.00525634]
[1625446753407,6.96017045,34846.0,34845.0,0.00525634]
[1625446753609,8.30677932,34846.0,34845.0,0.00525634]
[1625446753858,8.30677932,34846.0,34844.0,0.0052577]
[1625446753958,8.56099932,34846.0,34844.0,0.0052577]
[1625446754058,10.07558765,34846.0,34844.0,0.0052577]
[1625446754516,3.53392083,34845.0,34844.0,0.0052577]
[1625446754710,3.89249627,34845.0,34844.0,0.0052577]
[1625446754911,3.89249627,34845.0,34843.0,0.00525787]
[1625446755312,3.5337914,34844.0,34843.0,0.00525787]
[1625446755411,3.6517914,34844.0,34843.0,0.00525787]
[1625446755513,3.6517914,34844.0,34841.0,0.33855469]
[1625446755612,3.6517914,34844.0,34841.0,0.09775542]
[1625446755964,5.16513286,34844.0,34842.0,0.00525163]
[1625446756263,5.16513286,34844.0,34837.0,0.16930253]
[1625446756264,5.16513286,34844.0,34838.0,0.00523981]
[1625446756564,5.05021024,34843.0,34838.0,0.00523981]
[1625446756663,5.10921024,34843.0,34838.0,0.00523981]
[1625446756765,0.48115088,34839.0,34838.0,0.00523981]
[1625446756863,0.76262088,34839.0,34838.0,0.00523981]
[1625446757315,4.29872484,34839.0,34838.0,0.00523981]
[1625446758114,4.29872484,34839.0,34835.0,0.00523974]
[1625446758714,1.48965322,34836.0,34835.0,0.00523974]
[1625446758815,1.54865322,34836.0,34835.0,0.00523974]
[1625446760268,1.60765322,34836.0,34835.0,0.00523974]
[1625446761020,1.60765322,34836.0,34834.0,0.00524001]
[1625446762172,3.6739,34835.0,34834.0,0.00524001]
[1625446762373,3.7329,34835.0,34834.0,0.00524001]
[1625446762876,4.73710718,34835.0,34834.0,0.00524001]
[1625446763128,4.73710718,34835.0,34833.0,0.00524007]
[1625446765084,3.7329,34835.0,34833.0,0.00524007]
[1625446765481,4.73734708,34835.0,34833.0,0.00524007]
[1625446765934,4.79634708,34835.0,34833.0,0.00524007]
[1625446766738,0.24057544,34834.0,34832.0,0.00524075]
[1625446766941,3.86631059,34834.0,34832.0,0.00524075]
[1625446767288,3.86631059,34834.0,34827.0,0.00523938]
[1625446767689,1.00106018,34828.0,34827.0,0.00523938]
[1625446767789,1.35928018,34828.0,34827.0,0.00523938]
[1625446768091,1.35928018,34828.0,34825.0,0.00523945]
[1625446768740,0.72172632,34826.0,34825.0,0.00523945]
[1625446768940,0.78072632,34826.0,34825.0,0.00523945]
[1625446769945,0.78072632,34826.0,34824.0,0.00523943]
[1625446770747,0.78072632,34826.0,34824.0,1.01934903]
[1625446771046,0.78072632,34826.0,34825.0,0.00523926]
[1625446771798,0.78072632,34826.0,34824.0,0.00523914]
[1625446771898,0.78072632,34826.0,34824.0,1.01911535]
[1625446772349,0.78072632,34826.0,34825.0,1.01908945]
[1625446773202,0.78072632,34826.0,34825.0,0.00523914]
[1625446773852,0.78072632,34826.0,34825.0,1.01903413]
[1625446773952,0.78072632,34826.0,34825.0,1.01379499]
[1625446774204,0.78072632,34826.0,34825.0,1.01903392]
[1625446774657,0.78072632,34826.0,34825.0,2.20175622]
[1625446775257,0.78072632,34826.0,34825.0,1.01903392]
[1625446775555,0.78072632,34826.0,34825.0,2.87780825]
[1625446775704,0.72172632,34826.0,34825.0,2.87780825]
[1625446776906,0.78072632,34826.0,34825.0,2.87780825]
[1625446777859,0.72172632,34826.0,34825.0,2.87780825]
[1625446782920,0.72172632,34826.0,34825.0,1.69495186]
[1625446784422,0.99404632,34826.0,34825.0,1.69495186]
[1625446784973,1.05304632,34826.0,34825.0,1.69495186]
[1625446785073,0.99404632,34826.0,34825.0,1.69495186]
[1625446788081,1.05304632,34826.0,34825.0,1.69495186]
[1625446788338,0.99404632,34826.0,34825.0,1.69495186]
[1625446789789,0.99404632,34826.0,34825.0,0.68115687]
[1625446789938,0.99404632,34826.0,34825.0,0.67591794]
[1625446790139,0.99404632,34826.0,34825.0,1.6895186]
[1625446790239,1.05304632,34826.0,34825.0,1.69476894]
[1625446790540,1.05304632,34826.0,34825.0,0.68116828]
[1625446791290,1.05304632,34826.0,34825.0,0.00525034]
[1625446791842,1.05304632,34826.0,34824.0,0.00525101]
[1625446792042,1.05304632,34826.0,34825.0,0.00525101]
[1625446792342,1.05304632,34826.0,34824.0,0.00525106]
[1625446794196,1.05304632,34826.0,34823.0,0.00525115]
[1625446794698,1.05304632,34826.0,34823.0,0.68107325]
[1625446795002,1.05304632,34826.0,34824.0,0.005251]
[1625446796353,0.99404632,34826.0,34824.0,0.005251]
[1625446796503,1.05304632,34826.0,34824.0,0.005251]
[1625446796904,1.05304632,34826.0,34823.0,0.00524995]
[1625446797005,1.7156881,34826.0,34823.0,0.00524995]
[1625446797105,1.7156881,34826.0,34825.0,0.00524995]
[1625446797506,1.05304632,34826.0,34823.0,0.00525005]
[1625446797756,1.71584093,34826.0,34825.0,0.00525005]
[1625446798005,1.71584093,34826.0,34823.0,0.00525009]
[1625446798208,2.70970052,34826.0,34823.0,0.00525009]
[1625446798307,2.70970052,34826.0,34822.0,0.00525011]
[1625446798509,2.70970052,34826.0,34824.0,0.00525037]
[1625446798759,0.99372799,34825.0,34824.0,0.00525037]
[1625446798856,0.99372799,34825.0,34821.0,0.00525035]
[1625446798956,0.24057544,34822.0,34821.0,0.00525035]
[1625446799056,0.29957544,34822.0,34820.0,0.67593061]
[1625446799157,0.24057544,34822.0,34820.0,0.059]
[1625446799357,0.24057544,34822.0,34821.0,0.00525016]
[1625446799457,0.24057544,34822.0,34821.0,0.06425016]
[1625446799658,0.24057544,34822.0,34821.0,0.74010116]
[1625446799758,0.24057544,34822.0,34821.0,1.75387767]
[1625446800661,4.35447544,34822.0,34821.0,1.75387767]
[1625446801165,4.35447544,34822.0,34821.0,1.67057767]
[1625446801264,4.47247544,34822.0,34821.0,1.67057767]
[1625446801917,4.47247544,34822.0,34818.0,1.25456261]
[1625446802016,4.78820544,34822.0,34818.0,1.25456261]
[1625446802266,4.78820544,34822.0,34819.0,0.00524359]
[1625446802768,5.78354099,34822.0,34819.0,0.00524359]
[1625446802971,0.48115088,34820.0,34819.0,0.00524359]
[1625446803069,0.59915088,34820.0,34819.0,0.00524359]
[1625446803673,2.75801878,34820.0,34819.0,0.00524359]
[1625446803771,2.75801878,34820.0,34817.0,0.00524433]
[1625446803975,3.25801878,34820.0,34817.0,0.00524433]
[1625446804072,3.25801878,34820.0,34813.0,0.00524459]
[1625446804272,0.9956813,34818.0,34813.0,0.00524459]
[1625446804371,1.0546813,34818.0,34813.0,0.00524459]
[1625446804472,1.1136813,34818.0,34813.0,0.00524459]
[1625446804823,0.99574424,34815.0,34811.0,0.00523426]
[1625446804922,1.37209424,34815.0,34811.0,0.00523426]
[1625446805024,0.78072632,34812.0,34811.0,0.00523426]
[1625446805122,0.83972632,34812.0,34809.0,0.00523442]
[1625446805225,0.059,34811.0,34809.0,0.00523442]
[1625446805326,0.118,34811.0,34807.0,1.0141862]
[1625446805624,0.118,34811.0,34808.0,0.0052349]
[1625446805724,0.49726911,34810.0,34808.0,0.0052349]
[1625446805822,0.55626911,34810.0,34808.0,0.0052349]
[1625446805923,0.61526911,34810.0,34808.0,0.0052349]
[1625446806122,0.61526911,34810.0,34805.0,0.50670983]
[1625446806123,3.6735,34809.0,34806.0,0.00523518]
[1625446806232,3.7325,34809.0,34805.0,0.01194501]
[1625446806424,3.7915,34809.0,34805.0,0.01194501]
[1625446806526,0.3833,34808.0,34805.0,0.01194501]
[1625446806624,0.4423,34808.0,34805.0,0.01194501]
[1625446806725,1.43603615,34808.0,34800.0,1.01351906]
[1625446806974,0.72172632,34801.0,34800.0,1.01351906]
[1625446807076,0.72172632,34801.0,34798.0,1.42301434]
[1625446807077,1.09906632,34801.0,34798.0,1.25439172]
[1625446807174,1.15806632,34801.0,34798.0,1.25439172]
[1625446807275,1.15806632,34801.0,34800.0,0.00524537]
[1625446807526,1.15806632,34801.0,34799.0,0.00524542]
[1625446807726,1.15806632,34801.0,34798.0,0.24057544]
[1625446809029,1.15806632,34801.0,34793.0,1.25331564]
[1625446809229,3.5226,34795.0,34793.0,1.25331564]
[1625446809329,3.6406,34795.0,34794.0,0.005246]
[1625446809679,3.6406,34795.0,34793.0,0.24057544]
[1625446809979,0.118,34795.0,34793.0,0.24057544]
[1625446811037,0.54015088,34794.0,34793.0,0.24057544]
[1625446811133,0.59915088,34794.0,34793.0,0.24057544]
[1625446811337,4.72415088,34794.0,34793.0,0.24057544]
[1625446811432,4.78315088,34794.0,34793.0,0.24057544]
[1625446811834,0.59915088,34794.0,34793.0,0.24057544]
[1625446811934,0.54015088,34794.0,34793.0,0.24057544]
[1625446812035,0.48115088,34794.0,34793.0,0.24057544]
[1625446815652,0.59915088,34794.0,34793.0,0.24057544]
[1625446816306,0.54015088,34794.0,34793.0,0.24057544]
[1625446816505,0.59915088,34794.0,34793.0,0.24057544]
[1625446816605,0.54015088,34794.0,34793.0,0.24057544]
[1625446817659,0.59915088,34794.0,34793.0,0.24057544]
[1625446818414,0.54015088,34794.0,34793.0,0.24057544]
[1625446819518,0.48115088,34794.0,34793.0,0.24057544]
[1625446819620,0.54015088,34794.0,34793.0,0.24057544]
[1625446820521,0.54015088,34794.0,34793.0,1.25026762]
[1625446820874,0.54015088,34794.0,34793.0,0.24057544]
[1625446820974,0.54015088,34794.0,34793.0,0.46480544]
[1625446821075,0.01,34804.0,34793.0,0.46480544]
[1625446821183,0.069,34804.0,34793.0,0.52380544]
[1625446821300,0.069,34804.0,34793.0,0.58280544]
[1625446821404,0.01,34804.0,34794.0,0.005245]
[1625446821493,0.01,34804.0,34794.0,0.123245]
[1625446821790,0.01,34804.0,34797.0,1.00946415]
[1625446821888,0.01,34804.0,34797.0,1.12746415]
[1625446822176,0.01,34804.0,34798.0,0.00524407]
[1625446822277,0.01,34804.0,34798.0,0.12324407]
[1625446822581,0.01,34804.0,34800.0,1.29261893]
[1625446822680,0.01,34804.0,34800.0,1.41061893]
[1625446822981,0.01,34804.0,34801.0,0.00524345]
[1625446823083,0.01,34804.0,34803.0,2.90854973]
[1625446823180,0.01,34804.0,34803.0,2.96754973]
[1625446823281,0.01,34804.0,34803.0,3.02654973]
[1625446823532,0.01,34804.0,34803.0,3.03179303]
[1625446824232,0.01,34804.0,34803.0,3.06329303]
[1625446824332,0.01,34805.0,34803.0,3.05529303]
[1625446824635,0.01,34805.0,34804.0,0.00524343]
[1625446824737,0.01,34805.0,34804.0,1.0737423]
[1625446824836,0.01,34805.0,34804.0,1.1327423]
[1625446825089,0.01,34805.0,34804.0,1.37331774]
[1625446825189,0.01,34805.0,34804.0,2.71939954]
[1625446825287,0.01,34805.0,34804.0,2.75089954]
[1625446825937,0.9976882,34824.0,34804.0,2.75089954]
[1625446826239,0.9246,34825.0,34805.0,0.0052429]
[1625446826337,0.9836,34825.0,34805.0,0.1232429]
[1625446826646,0.9246,34825.0,34810.0,1.00950772]
[1625446826746,0.9246,34825.0,34810.0,1.37692772]
[1625446826897,0.99858014,34827.0,34810.0,1.37692772]
[1625446827096,0.99858014,34827.0,34826.0,0.72172632]
[1625446827397,0.99893849,34828.0,34826.0,0.72172632]
[1625446827596,1.05793849,34828.0,34826.0,0.72172632]
[1625446827696,0.99893849,34828.0,34826.0,0.72172632]
[1625446827997,0.99946921,34829.0,34826.0,0.72172632]
[1625446828345,1.05846921,34829.0,34826.0,0.72172632]
[1625446828696,1.11746921,34829.0,34826.0,0.72172632]
[1625446828997,1.05846921,34829.0,34826.0,0.72172632]
[1625446829101,0.99879505,34828.0,34826.0,0.72172632]
[1625446829400,1.3325701,34832.0,34826.0,0.72172632]
[1625446829506,1.3325701,34832.0,34826.0,0.78072632]
[1625446829603,1.3325701,34832.0,34826.0,0.83972632]
[1625446829702,1.3325701,34832.0,34826.0,0.87122632]
[1625446829905,1.3325701,34832.0,34827.0,0.00520698]
[1625446830005,1.3325701,34832.0,34827.0,0.06420698]
[1625446830207,1.49810935,34835.0,34827.0,0.06420698]
[1625446830208,1.33295001,34835.0,34827.0,0.059]
[1625446830506,1.33295001,34835.0,34827.0,0.0905]
[1625446830608,1.33295001,34835.0,34827.0,0.1495]
[1625446830906,1.33514767,34842.0,34827.0,0.1495]
[1625446831006,1.33514767,34842.0,34828.0,0.00520642]
[1625446831108,1.33514767,34842.0,34841.0,0.96230176]
[1625446831207,1.33514767,34842.0,34841.0,1.18485176]
[1625446831557,1.33555134,34846.0,34841.0,1.18485176]
[1625446831866,1.33576937,34847.0,34841.0,1.18485176]
[1625446832061,1.39476937,34847.0,34841.0,1.18485176]
[1625446833114,1.39476937,34847.0,34845.0,0.24057544]
[1625446833414,0.059,34847.0,34845.0,0.24057544]
[1625446835117,1.33495903,34848.0,34845.0,0.24057544]
[1625446835315,1.33477077,34849.0,34845.0,0.24057544]
[1625446835617,1.33477077,34849.0,34845.0,0.29957544]
[1625446835917,1.33477077,34849.0,34845.0,0.33107544]
[1625446836018,1.33620324,34853.0,34845.0,0.33107544]
[1625446836118,1.39520324,34853.0,34845.0,0.33107544]
[1625446836219,1.45420324,34853.0,34845.0,0.33107544]
[1625446836420,0.118,34853.0,34845.0,0.33107544]
[1625446836619,0.118,34853.0,34845.0,0.27207544]
[1625446837121,0.118,34853.0,34852.0,0.48115088]
[1625446837321,0.059,34853.0,34852.0,0.48115088]
[1625446837533,1.33573292,34854.0,34852.0,0.48115088]
[1625446837723,1.33573292,34854.0,34852.0,0.51265088]
[1625446837923,1.33573292,34854.0,34852.0,0.57165088]
[1625446838025,1.57804027,34859.0,34852.0,0.57165088]
[1625446838223,1.57804027,34859.0,34852.0,0.63065088]
[1625446838524,0.24057544,34859.0,34852.0,0.63065088]
[1625446838724,1.33775138,34860.0,34852.0,0.63065088]
[1625446838924,0.057,34872.0,34852.0,0.63065088]
[1625446838925,1.33811705,34863.0,34852.0,0.63065088]
[1625446839226,1.33811705,34863.0,34861.0,0.75493088]
[1625446839524,0.29957544,34862.0,34861.0,0.75493088]
[1625446840224,0.24057544,34862.0,34861.0,0.75493088]
[1625446841328,0.29957544,34862.0,34861.0,0.75493088]
[1625446841932,0.24057544,34862.0,34861.0,0.75493088]
[1625446846795,0.29957544,34862.0,34861.0,0.75493088]
[1625446846997,0.24057544,34862.0,34861.0,0.75493088]
[1625446848549,0.29957544,34862.0,34861.0,0.75493088]
[1625446848649,0.29957544,34862.0,34861.0,0.48115088]
[1625446849263,0.059,34862.0,34861.0,0.48115088]
[1625446851508,1.40652331,34867.0,34861.0,0.48115088]
[1625446851609,1.52452331,34867.0,34861.0,0.48115088]
[1625446853113,0.35857544,34867.0,34861.0,0.48115088]
[1625446853212,0.35857544,34867.0,34866.0,0.24057544]
[1625446853610,0.35857544,34867.0,34861.0,0.48115088]
[1625446855266,0.35857544,34867.0,34865.0,0.24057544]
[1625446859271,0.59915088,34867.0,34865.0,0.24057544]
[1625446860825,0.59915088,34867.0,34865.0,0.55053544]
[1625446863685,0.01253223,34866.0,34865.0,0.55053544]
[1625446863783,0.07153223,34866.0,34865.0,0.55053544]
[1625446863883,0.13053223,34866.0,34865.0,0.55053544]
[1625446864784,0.118,34866.0,34865.0,0.55053544]
[1625446865836,0.13053172,34866.0,34865.0,0.55575069]
[1625446871606,0.07153172,34866.0,34865.0,0.55575069]
[1625446871907,0.13053172,34866.0,34865.0,0.55575069]
[1625446872106,0.07153172,34866.0,34865.0,0.55575069]
[1625446872556,0.059,34866.0,34865.0,0.55575069]
[1625446872761,0.48115088,34867.0,34865.0,0.55575069]
[1625446873261,0.48115088,34867.0,34866.0,0.00521255]
[1625446874062,0.90844661,34875.0,34866.0,0.00521255]
[1625446874166,0.96744661,34875.0,34866.0,0.09571255]
[1625446874267,0.29957544,34875.0,34866.0,0.09571255]
[1625446874619,0.29957544,34875.0,34867.0,0.0052141]
[1625446874717,0.29957544,34875.0,34867.0,0.0642141]
[1625446875167,0.29957544,34875.0,34868.0,0.00521378]
[1625446875268,0.059,34875.0,34868.0,0.00521378]
[1625446875367,0.059,34875.0,34868.0,0.06421378]
[1625446875466,0.059,34875.0,34874.0,0.72172632]
[1625446875567,0.059,34875.0,34874.0,0.92457632]
[1625446875869,0.059,34875.0,34874.0,0.92978972]
[1625446876067,0.33444267,34879.0,34874.0,0.92978972]
[1625446876168,0.39344267,34879.0,34874.0,0.92457632]
[1625446876268,0.059,34879.0,34874.0,0.92457632]
[1625446876368,0.118,34879.0,34874.0,0.92457632]
[1625446876617,0.059,34879.0,34874.0,0.92457632]
[1625446876920,0.059,34879.0,34875.0,0.00521826]
[1625446877420,0.059,34879.0,34878.0,0.24057544]
[1625446878670,0.118,34879.0,34878.0,0.24057544]
[1625446878923,0.78746986,34879.0,34878.0,0.24057544]
[1625446879023,4.63226986,34879.0,34878.0,0.24057544]
[1625446879529,1.79339575,34879.0,34878.0,0.24057544]
[1625446881425,2.96667037,34879.0,34878.0,0.24057544]
[1625446881677,2.90767037,34879.0,34878.0,0.24057544]
[1625446881775,2.96667037,34879.0,34878.0,0.24057544]
[1625446881891,4.31024374,34879.0,34878.0,0.24057544]
[1625446883429,5.82170997,34879.0,34878.0,0.24057544]
[1625446883529,5.82170997,34879.0,34874.0,0.72172632]
[1625446883630,6.02474997,34879.0,34874.0,0.72172632]
[1625446884481,5.77678537,34875.0,34874.0,0.72172632]
[1625446884580,5.83578537,34875.0,34874.0,0.72172632]
[1625446885486,6.07636081,34875.0,34874.0,0.72172632]
[1625446885884,6.07636081,34875.0,34874.0,0.48115088]
[1625446886737,6.07636081,34875.0,34866.0,0.24057544]
[1625446887136,2.86263859,34867.0,34866.0,0.24057544]
[1625446887238,2.92163859,34867.0,34866.0,0.24057544]
[1625446887335,2.91163859,34867.0,34866.0,0.24057544]
[1625446887489,2.91163859,34867.0,34866.0,0.48115088]
[1625446887889,1.74294467,34867.0,34866.0,0.48115088]
[1625446887990,1.74294467,34867.0,34866.0,0.48637114]
[1625446890238,1.73294467,34867.0,34866.0,0.48637114]
[1625446890990,3.08300265,34867.0,34866.0,0.48637114]
[1625446891646,3.02400265,34867.0,34866.0,0.48637114]
[1625446896407,3.53109574,34867.0,34866.0,0.48637114]
[1625446899518,3.59009574,34867.0,34866.0,0.48637114]
[1625446901526,3.91628574,34867.0,34866.0,0.48637114]
[1625446901725,3.85728574,34867.0,34866.0,0.48637114]
[1625446901825,3.91628574,34867.0,34866.0,0.48637114]
[1625446901924,8.43328574,34867.0,34866.0,0.48637114]
[1625446902124,3.91628574,34867.0,34866.0,0.48637114]
[1625446902626,3.85728574,34867.0,34866.0,0.48637114]
[1625446902725,3.53109574,34867.0,34866.0,0.48637114]
[1625446907630,4.71481187,34867.0,34866.0,0.48637114]
[1625446907731,9.82741187,34867.0,34866.0,0.48637114]
[1625446908485,4.71481187,34867.0,34866.0,0.48637114]
[1625446908585,4.71481187,34867.0,34866.0,0.78017114]
[1625446909002,4.71481187,34867.0,34866.0,0.83917114]
[1625446909099,4.71481187,34867.0,34866.0,0.89817114]
[1625446909187,4.71481187,34867.0,34866.0,4.61647114]
[1625446909289,4.71481187,34867.0,34866.0,4.64797114]
[1625446909497,3.36475389,34867.0,34866.0,4.81414182]
[1625446910089,0.16923111,34867.0,34866.0,7.3008585]
[1625446910190,0.16923111,34867.0,34866.0,3.5235585]
[1625446910841,0.1692107,34868.0,34866.0,3.5235585]
[1625446910940,0.50729402,34869.0,34866.0,3.5235585]
[1625446911046,0.50729402,34869.0,34866.0,3.5825585]
[1625446911242,0.50729402,34869.0,34867.0,0.00521595]
[1625446911340,0.50729402,34869.0,34867.0,0.12321595]
[1625446911542,1.01441901,34871.0,34867.0,0.12321595]
[1625446911642,1.01441811,34872.0,34870.0,0.24057544]
[1625446911741,1.01441811,34872.0,34870.0,0.29957544]
[1625446911841,1.01441811,34872.0,34870.0,0.35857544]
[1625446911991,1.01441811,34872.0,34871.0,0.00521493]
[1625446912092,1.01406311,34874.0,34871.0,0.00521493]
[1625446912191,1.01406311,34874.0,34871.0,0.06421493]
[1625446912493,1.01406311,34874.0,34872.0,0.00521489]
[1625446912592,1.01406311,34874.0,34872.0,0.06421489]
[1625446913043,1.01406311,34874.0,34873.0,0.00521491]
[1625446913144,1.01406311,34874.0,34873.0,0.27278491]
[1625446913445,1.0138558,34875.0,34873.0,0.27278491]
[1625446913645,1.0138558,34875.0,34874.0,0.48115088]
[1625446913745,1.0138558,34875.0,34874.0,0.54015088]
[1625446913996,1.0138558,34875.0,34874.0,0.54536581]
[1625446914646,1.0138558,34875.0,34874.0,0.57686581]
[1625446915450,2.19687657,34875.0,34874.0,0.57686581]
[1625446915548,2.19687657,34875.0,34874.0,0.87715581]
[1625446916800,2.19687657,34875.0,34874.0,0.93615581]
[1625446917053,1.0138558,34875.0,34874.0,0.93615581]
[1625446918107,1.0138558,34875.0,34874.0,0.87715581]
[1625446918206,1.0138558,34875.0,34874.0,0.93615581]
[1625446919060,1.0138558,34875.0,34874.0,0.87715581]
[1625446919258,1.0138558,34875.0,34874.0,0.93615581]
[1625446919360,1.0138558,34875.0,34874.0,0.87715581]
[1625446919460,1.0138558,34875.0,34874.0,0.93615581]
[1625446919708,1.0138558,34875.0,34874.0,0.87715581]
[1625446919809,0.008,34876.0,34874.0,0.93615581]
[1625446920008,0.008,34876.0,34874.0,0.87715581]
[1625446920208,0.008,34876.0,34875.0,0.00521084]
[1625446920308,0.008,34876.0,34875.0,0.06421084]
[1625446920961,1.02208865,34876.0,34875.0,0.06421084]
[1625446921515,2.20516682,34876.0,34875.0,0.06421084]
[1625446921613,2.20516682,34876.0,34875.0,0.12321084]
[1625446922318,2.20516682,34876.0,34875.0,0.06421084]
[1625446922414,1.02208865,34876.0,34875.0,0.00521084]
[1625446922765,2.20495114,34876.0,34875.0,0.00521084]
[1625446923065,2.20495114,34876.0,34875.0,0.06421084]
[1625446923166,2.20495114,34876.0,34875.0,0.00521084]
[1625446924221,0.008,34876.0,34875.0,0.00521084]
[1625446924723,2.20502928,34876.0,34875.0,0.00521084]
[1625446925338,2.32302928,34876.0,34875.0,0.00521084]
[1625446925441,2.60223928,34876.0,34875.0,0.00521084]
[1625446925525,2.60223928,34876.0,34874.0,0.72172632]
[1625446925727,0.24057544,34875.0,34874.0,0.72172632]
[1625446925826,3.9079829,34875.0,34874.0,0.72172632]
[1625446926025,3.8489829,34875.0,34874.0,0.72172632]
[1625446926327,3.8489829,34875.0,34874.0,0.72693821]
[1625446926727,3.7899829,34875.0,34874.0,0.72693821]
[1625446927378,3.8489829,34875.0,34874.0,0.72693821]
[1625446927479,3.7899829,34875.0,34874.0,0.72693821]
[1625446928280,3.8489829,34875.0,34874.0,0.72693821]
[1625446928380,3.7899829,34875.0,34874.0,0.72693821]
[1625446929609,3.7899829,34875.0,34874.0,0.78593821]
[1625446929893,2.43785182,34875.0,34874.0,0.78593821]
[1625446930184,2.43785182,34875.0,34874.0,0.72693821]
[1625446930938,2.43785182,34875.0,34874.0,0.99677821]
[1625446931088,2.19727638,34875.0,34874.0,0.99677821]
[1625446931690,2.19727638,34875.0,34874.0,1.05577821]
[1625446931789,2.19727638,34875.0,34874.0,0.99677821]
[1625446931889,2.19727638,34875.0,34874.0,1.05577821]
[1625446933092,2.19727638,34875.0,34874.0,0.99677821]
[1625446936200,2.19727638,34875.0,34874.0,1.08024392]
[1625446937558,2.19727638,34875.0,34874.0,0.72693821]
[1625446938003,2.19727638,34875.0,34874.0,0.81044018]
[1625446938757,2.19727638,34875.0,34874.0,0.72693821]
[1625446939915,2.19727638,34875.0,34874.0,0.81074616]
[1625446941016,2.19727638,34875.0,34874.0,0.72693821]
[1625446941669,2.19727638,34875.0,34874.0,0.81072675]
[1625446941968,2.19727638,34875.0,34874.0,0.86972675]
[1625446942073,2.19727638,34875.0,34874.0,0.72693821]
[1625446942668,2.19727638,34875.0,34874.0,0.78593821]
[1625446942669,1.01414056,34875.0,34874.0,0.78593821]
[1625446942918,2.19758209,34875.0,34874.0,0.72693821]
[1625446944069,2.19758209,34875.0,34874.0,0.78593821]
[1625446944418,2.19758209,34875.0,34874.0,0.72693821]
[1625446944518,1.01414056,34875.0,34874.0,0.72693821]
[1625446945072,2.19764793,34875.0,34874.0,0.72693821]
[1625446947073,2.19764793,34875.0,34874.0,0.78593821]
[1625446947524,2.19764793,34875.0,34874.0,0.72693821]
[1625446948374,2.19764793,34875.0,34874.0,0.78593821]
[1625446948474,2.19764793,34875.0,34874.0,0.72693821]
[1625446949225,2.19764793,34875.0,34874.0,0.78593821]
[1625446949725,2.19764793,34875.0,34874.0,0.72693821]
[1625446949825,1.01414056,34875.0,34874.0,0.72693821]
[1625446949977,1.01414056,34875.0,34874.0,0.78593821]
[1625446950432,2.87445854,34875.0,34874.0,1.45927444]
[1625446951833,2.87445854,34875.0,34874.0,1.40027444]
[1625446951936,2.87445854,34875.0,34874.0,1.45927444]
[1625446952284,1.69066594,34875.0,34874.0,2.46924387]
[1625446952684,1.69066594,34875.0,34874.0,2.52824387]
[1625446954089,1.69066594,34875.0,34874.0,2.55974387]
[1625446955292,1.52195533,34881.0,34874.0,0.87643821]
[1625446955392,1.52195533,34881.0,34874.0,0.81743821]
[1625446955594,1.52195533,34881.0,34875.0,0.00521379]
[1625446955691,1.52195533,34881.0,34875.0,0.12321379]
[1625446955792,1.18431526,34876.0,34875.0,0.79612381]
[1625446956341,2.8762971,34876.0,34875.0,0.79612381]
[1625446956644,2.8762971,34876.0,34875.0,1.80529134]